[Event "Early-Titled-Tuesday-Blitz-June-18-2024"]
[Site "Chess.com"]
[Date "2024.06.18"]
[Round "2"]
[White "Blitzking642"]
[Black "teresin05"]
[Result "1-0"]
[WhiteElo "2528"]
[BlackElo "2307"]
[TimeControl "180+1"]
[EndTime "8:18:11 PDT"]
[Termination "Blitzking642 won by checkmate"]

1. d4 {[%clk 0:03:00.9]} 1... d5 {[%clk 0:02:57.6]} 2. c4 {[%clk 0:03:01.2]}
2... c6 {[%clk 0:02:57.5]} 3. Nf3 {[%clk 0:03:00.6]} 3... Nf6 {[%clk 0:02:57.3]}
4. Nc3 {[%clk 0:02:59.7]} 4... e6 {[%clk 0:02:54.6]} 5. g3 {[%clk 0:02:59.7]}
5... dxc4 {[%clk 0:02:42.5]} 6. Bg2 {[%clk 0:02:59.7]} 6... b5 {[%clk 0:02:35]}
7. Ne5 {[%clk 0:02:56.6]} 7... Qb6 {[%clk 0:02:30.4]} 8. O-O {[%clk 0:02:51.9]}
8... Bb7 {[%clk 0:02:26.7]} 9. a4 {[%clk 0:02:45.8]} 9... a6 {[%clk 0:02:24.6]}
10. b3 {[%clk 0:02:07.3]} 10... cxb3 {[%clk 0:02:12.3]} 11. Qxb3 {[%clk
0:01:58.6]} 11... Be7 {[%clk 0:02:05.1]} 12. Rd1 {[%clk 0:01:53.6]} 12... O-O
{[%clk 0:02:00.5]} 13. e4 {[%clk 0:01:45.8]} 13... Nbd7 {[%clk 0:01:56.1]} 14.
Be3 {[%clk 0:01:43.6]} 14... Qc7 {[%clk 0:01:50.8]} 15. Nxd7 {[%clk 0:01:22.5]}
15... Nxd7 {[%clk 0:01:49.4]} 16. Rdc1 {[%clk 0:01:23.4]} 16... Qd8 {[%clk
0:01:20.7]} 17. a5 {[%clk 0:01:15.2]} 17... c5 {[%clk 0:01:17.5]} 18. d5 {[%clk
0:01:11.3]} 18... c4 {[%clk 0:01:11.3]} 19. Qc2 {[%clk 0:01:07.5]} 19... b4
{[%clk 0:00:52.4]} 20. Na4 {[%clk 0:01:06.6]} 20... exd5 {[%clk 0:00:50.5]} 21.
exd5 {[%clk 0:01:05.9]} 21... Rc8 {[%clk 0:00:37.2]} 22. d6 {[%clk 0:01:04.3]}
22... Bxg2 {[%clk 0:00:19.2]} 23. dxe7 {[%clk 0:01:04]} 23... Qxe7 {[%clk
0:00:20.1]} 24. Kxg2 {[%clk 0:01:04.6]} 24... b3 {[%clk 0:00:17.7]} 25. Qe2
{[%clk 0:00:58.9]} 25... Qe4+ {[%clk 0:00:14.9]} 26. Qf3 {[%clk 0:00:57]} 26...
Qe5 {[%clk 0:00:11.3]} 27. Bf4 {[%clk 0:00:50.8]} 27... Qxa5 {[%clk 0:00:11]}
28. Nc3 {[%clk 0:00:47.5]} 28... Qb4 {[%clk 0:00:10.2]} 29. Nd5 {[%clk
0:00:46.7]} 29... Qc5 {[%clk 0:00:04.1]} 30. Rxa6 {[%clk 0:00:38.3]} 30... Rfe8
{[%clk 0:00:04.5]} 31. Bd6 {[%clk 0:00:35.4]} 31... Qb5 {[%clk 0:00:04.2]} 32.
Ra7 {[%clk 0:00:26.5]} 32... b2 {[%clk 0:00:03.5]} 33. Rb1 {[%clk 0:00:27.2]}
33... Nc5 {[%clk 0:00:01.1]} 34. Ne7+ {[%clk 0:00:23.3]} 34... Rxe7 {[%clk
0:00:01.4]} 35. Rxe7 {[%clk 0:00:23.6]} 35... Nb3 {[%clk 0:00:02.1]} 36. Qxf7+
{[%clk 0:00:23.5]} 36... Kh8 {[%clk 0:00:01.7]} 37. Qxg7# {[%clk 0:00:23.5]} 1-0

[Event "Early-Titled-Tuesday-Blitz-June-18-2024"]
[Site "Chess.com"]
[Date "2024.06.18"]
[Round "2"]
[White "Durarbayli"]
[Black "Mikozovna"]
[Result "1-0"]
[WhiteElo "2939"]
[BlackElo "2631"]
[TimeControl "180+1"]
[EndTime "8:18:12 PDT"]
[Termination "Durarbayli won by checkmate"]

1. e4 {[%clk 0:03:00.9]} 1... d6 {[%clk 0:02:58.8]} 2. d4 {[%clk 0:03:00.5]}
2... g6 {[%clk 0:02:59]} 3. Nc3 {[%clk 0:03:00.3]} 3... Bg7 {[%clk 0:02:59.3]}
4. Be3 {[%clk 0:03:00.2]} 4... c6 {[%clk 0:02:57.9]} 5. Qd2 {[%clk 0:02:57.7]}
5... b5 {[%clk 0:02:56]} 6. h3 {[%clk 0:02:50.4]} 6... Nf6 {[%clk 0:02:51.8]} 7.
Bd3 {[%clk 0:02:50]} 7... a5 {[%clk 0:02:40.8]} 8. Nf3 {[%clk 0:02:49.8]} 8...
Bb7 {[%clk 0:02:36.2]} 9. Bh6 {[%clk 0:02:49.9]} 9... Bxh6 {[%clk 0:02:17.8]}
10. Qxh6 {[%clk 0:02:50.8]} 10... b4 {[%clk 0:02:15]} 11. Ne2 {[%clk 0:02:50.7]}
11... c5 {[%clk 0:01:54]} 12. Ng3 {[%clk 0:02:37.8]} 12... cxd4 {[%clk
0:01:51.6]} 13. Nxd4 {[%clk 0:02:38.2]} 13... Qb6 {[%clk 0:01:50.9]} 14. c3
{[%clk 0:02:30.9]} 14... Nbd7 {[%clk 0:01:41.3]} 15. O-O {[%clk 0:02:28.4]}
15... Rc8 {[%clk 0:01:28.6]} 16. Rac1 {[%clk 0:02:12.9]} 16... Rc5 {[%clk
0:01:09.3]} 17. Kh1 {[%clk 0:01:54]} 17... Ba6 {[%clk 0:01:00.1]} 18. Bxa6
{[%clk 0:01:52.7]} 18... Qxa6 {[%clk 0:01:00.5]} 19. f4 {[%clk 0:01:50.7]} 19...
bxc3 {[%clk 0:00:55.6]} 20. bxc3 {[%clk 0:01:51.1]} 20... Qd3 {[%clk 0:00:52.4]}
21. Rf3 {[%clk 0:01:42.3]} 21... Qd2 {[%clk 0:00:52.4]} 22. Nb3 {[%clk
0:01:36.6]} 22... Qb2 {[%clk 0:00:49.1]} 23. Kh2 {[%clk 0:01:31.3]} 23... Rc4
{[%clk 0:00:46.1]} 24. Nxa5 {[%clk 0:01:16]} 24... Ra4 {[%clk 0:00:43]} 25. Re1
{[%clk 0:01:00.7]} 25... Rxa5 {[%clk 0:00:41.9]} 26. Re2 {[%clk 0:00:57.6]}
26... Qb1 {[%clk 0:00:38.9]} 27. Rf1 {[%clk 0:00:49.8]} 27... Qb5 {[%clk
0:00:37.5]} 28. Rfe1 {[%clk 0:00:45.3]} 28... Nh5 {[%clk 0:00:36.4]} 29. Nf1
{[%clk 0:00:23.4]} 29... Nhf6 {[%clk 0:00:23]} 30. e5 {[%clk 0:00:21.9]} 30...
dxe5 {[%clk 0:00:21.3]} 31. fxe5 {[%clk 0:00:22.8]} 31... Nd5 {[%clk 0:00:20.8]}
32. e6 {[%clk 0:00:21.5]} 32... N7f6 {[%clk 0:00:20.3]} 33. exf7+ {[%clk
0:00:09.4]} 33... Kxf7 {[%clk 0:00:21.2]} 34. Re5 {[%clk 0:00:10]} 34... Qb8
{[%clk 0:00:20.4]} 35. Ng3 {[%clk 0:00:09.2]} 35... Rxa2 {[%clk 0:00:19.7]} 36.
c4 {[%clk 0:00:08.4]} 36... Nc3 {[%clk 0:00:18.1]} 37. Rxe7+ {[%clk 0:00:08.1]}
37... Kg8 {[%clk 0:00:17.5]} 38. Qg7# {[%clk 0:00:08.7]} 1-0

[Event "Early-Titled-Tuesday-Blitz-June-18-2024"]
[Site "Chess.com"]
[Date "2024.06.18"]
[Round "2"]
[White "maurovargas01"]
[Black "ThetNaung291"]
[Result "0-1"]
[WhiteElo "1928"]
[BlackElo "2444"]
[TimeControl "180+1"]
[EndTime "8:18:13 PDT"]
[Termination "ThetNaung291 won on time"]

1. e4 {[%clk 0:02:49.3]} 1... e6 {[%clk 0:02:58.4]} 2. Nc3 {[%clk 0:02:48.8]}
2... d5 {[%clk 0:02:56]} 3. e5 {[%clk 0:02:48.7]} 3... c5 {[%clk 0:02:50.8]} 4.
f4 {[%clk 0:02:48.4]} 4... Ne7 {[%clk 0:02:48.2]} 5. Nf3 {[%clk 0:02:48.4]} 5...
b6 {[%clk 0:02:44.2]} 6. Nb5 {[%clk 0:02:44.1]} 6... Nec6 {[%clk 0:02:37.3]} 7.
g4 {[%clk 0:02:37.1]} 7... h5 {[%clk 0:02:35.6]} 8. g5 {[%clk 0:02:37]} 8... a6
{[%clk 0:02:30]} 9. Nc3 {[%clk 0:02:35.9]} 9... Ne7 {[%clk 0:02:28]} 10. Ne2
{[%clk 0:02:31.3]} 10... d4 {[%clk 0:02:24]} 11. Ng3 {[%clk 0:02:29.6]} 11...
Bb7 {[%clk 0:02:19.4]} 12. d3 {[%clk 0:02:26.5]} 12... h4 {[%clk 0:02:16]} 13.
Ne4 {[%clk 0:02:26.2]} 13... Nf5 {[%clk 0:02:15.2]} 14. Bh3 {[%clk 0:02:22.9]}
14... Be7 {[%clk 0:02:14.5]} 15. Bxf5 {[%clk 0:02:20.4]} 15... exf5 {[%clk
0:02:13.3]} 16. Ned2 {[%clk 0:02:18]} 16... Nc6 {[%clk 0:02:05.8]} 17. a3 {[%clk
0:02:15]} 17... Na5 {[%clk 0:02:02.7]} 18. Qe2 {[%clk 0:02:13.8]} 18... Bd5
{[%clk 0:02:01.7]} 19. h3 {[%clk 0:02:06.5]} 19... Qd7 {[%clk 0:01:53.4]} 20.
O-O {[%clk 0:02:02.3]} 20... Nc6 {[%clk 0:01:49.1]} 21. b3 {[%clk 0:01:54.9]}
21... Nd8 {[%clk 0:01:45.4]} 22. Nc4 {[%clk 0:01:53.6]} 22... Rb8 {[%clk
0:01:43]} 23. Bd2 {[%clk 0:01:48.7]} 23... Ne6 {[%clk 0:01:41.6]} 24. a4 {[%clk
0:01:44]} 24... b5 {[%clk 0:01:38]} 25. axb5 {[%clk 0:01:24.7]} 25... axb5
{[%clk 0:01:37.8]} 26. Nb2 {[%clk 0:01:02.5]} 26... g6 {[%clk 0:01:35.4]} 27.
Nd1 {[%clk 0:01:01.3]} 27... Kf8 {[%clk 0:01:34.1]} 28. Nf2 {[%clk 0:00:59.5]}
28... Kg7 {[%clk 0:01:33.6]} 29. Ra6 {[%clk 0:00:39.1]} 29... Qb7 {[%clk
0:01:31]} 30. Rfa1 {[%clk 0:00:38.7]} 30... Bxf3 {[%clk 0:01:30.4]} 31. Qe1
{[%clk 0:00:22.9]} 31... Ra8 {[%clk 0:01:28.5]} 32. Rxa8 {[%clk 0:00:19.2]}
32... Rxa8 {[%clk 0:01:27.7]} 33. Rb1 {[%clk 0:00:19.1]} 33... Ra2 {[%clk
0:01:19.5]} 34. Rc1 {[%clk 0:00:18.7]} 34... Qd5 {[%clk 0:01:09]} 35. Nd1 {[%clk
0:00:08.1]} 35... c4 {[%clk 0:01:02.8]} 36. Qf2 {[%clk 0:00:07.7]} 36... Bxd1
{[%clk 0:00:58.5]} 37. Rxd1 {[%clk 0:00:05.3]} 37... Rxc2 {[%clk 0:00:57.8]} 38.
bxc4 {[%clk 0:00:05]} 38... bxc4 {[%clk 0:00:57]} 39. dxc4 {[%clk 0:00:05.2]}
39... Qxc4 {[%clk 0:00:56.1]} 40. Qf3 {[%clk 0:00:02]} 40... Bb4 {[%clk
0:00:49.4]} 0-1

[Event "Early-Titled-Tuesday-Blitz-June-18-2024"]
[Site "Chess.com"]
[Date "2024.06.18"]
[Round "2"]
[White "Rodalquilar"]
[Black "tusplingher"]
[Result "1-0"]
[WhiteElo "2795"]
[BlackElo "2562"]
[TimeControl "180+1"]
[EndTime "8:18:16 PDT"]
[Termination "Rodalquilar won by resignation"]

1. d4 {[%clk 0:03:00.9]} 1... Nf6 {[%clk 0:02:58.6]} 2. Nf3 {[%clk 0:03:01.1]}
2... c5 {[%clk 0:02:56.3]} 3. c3 {[%clk 0:03:00.3]} 3... e6 {[%clk 0:02:55.9]}
4. Bf4 {[%clk 0:02:59.7]} 4... Nc6 {[%clk 0:02:55.4]} 5. e3 {[%clk 0:02:59.6]}
5... d5 {[%clk 0:02:55.3]} 6. Nbd2 {[%clk 0:02:59.6]} 6... cxd4 {[%clk
0:02:55.6]} 7. exd4 {[%clk 0:02:59.4]} 7... Nh5 {[%clk 0:02:55.8]} 8. Be3 {[%clk
0:02:59]} 8... f5 {[%clk 0:02:54.2]} 9. Ne5 {[%clk 0:02:51.1]} 9... g6 {[%clk
0:02:46.1]} 10. Nd3 {[%clk 0:02:22.7]} 10... Bd6 {[%clk 0:02:42.2]} 11. g3
{[%clk 0:02:22.9]} 11... O-O {[%clk 0:02:29.9]} 12. Bh6 {[%clk 0:02:23.2]} 12...
Re8 {[%clk 0:02:23.3]} 13. f4 {[%clk 0:02:23.3]} 13... Nf6 {[%clk 0:02:13.3]}
14. Bg5 {[%clk 0:02:23]} 14... Be7 {[%clk 0:02:13.2]} 15. Bxf6 {[%clk
0:02:23.4]} 15... Bxf6 {[%clk 0:02:13.3]} 16. Nf3 {[%clk 0:02:04.5]} 16... b6
{[%clk 0:01:57.8]} 17. Qd2 {[%clk 0:01:29.5]} 17... a5 {[%clk 0:01:47.9]} 18.
Kf2 {[%clk 0:01:20.1]} 18... Ba6 {[%clk 0:01:41.4]} 19. Re1 {[%clk 0:01:16.7]}
19... Qd6 {[%clk 0:01:34.5]} 20. Nde5 {[%clk 0:01:12.9]} 20... Bxe5 {[%clk
0:01:18.3]} 21. fxe5 {[%clk 0:01:06.6]} 21... Qe7 {[%clk 0:01:13.4]} 22. Bxa6
{[%clk 0:01:06.3]} 22... Rxa6 {[%clk 0:01:13.6]} 23. h4 {[%clk 0:01:04.6]} 23...
b5 {[%clk 0:00:37.1]} 24. h5 {[%clk 0:01:03.6]} 24... b4 {[%clk 0:00:37.4]} 25.
hxg6 {[%clk 0:01:03.1]} 25... hxg6 {[%clk 0:00:37.7]} 26. Rh6 {[%clk 0:00:59]}
26... Qg7 {[%clk 0:00:31.3]} 27. Reh1 {[%clk 0:00:57.4]} 27... bxc3 {[%clk
0:00:28.1]} 28. bxc3 {[%clk 0:00:53.4]} 28... Rb6 {[%clk 0:00:27.1]} 29. Qg5
{[%clk 0:00:33.6]} 29... Rb2+ {[%clk 0:00:20.4]} 30. Ke3 {[%clk 0:00:32.2]}
30... Ne7 {[%clk 0:00:16.7]} 31. Rh8+ {[%clk 0:00:26.7]} 31... Kf7 {[%clk
0:00:12]} 32. R8h7 {[%clk 0:00:21.4]} 32... f4+ {[%clk 0:00:12.1]} 33. Kxf4
{[%clk 0:00:21.7]} 33... Rf8 {[%clk 0:00:08.6]} 34. Qf6+ {[%clk 0:00:18.5]}
34... Ke8 {[%clk 0:00:06.1]} 35. Rxg7 {[%clk 0:00:18.9]} 35... Rxf6+ {[%clk
0:00:06.1]} 36. exf6 {[%clk 0:00:19.4]} 1-0

[Event "Early-Titled-Tuesday-Blitz-June-18-2024"]
[Site "Chess.com"]
[Date "2024.06.18"]
[Round "2"]
[White "yaguigor"]
[Black "snowlord"]
[Result "0-1"]
[WhiteElo "2642"]
[BlackElo "2960"]
[TimeControl "180+1"]
[EndTime "8:18:17 PDT"]
[Termination "snowlord won by resignation"]

1. e4 {[%clk 0:03:00.9]} 1... Nf6 {[%clk 0:02:58.8]} 2. e5 {[%clk 0:02:59.8]}
2... Nd5 {[%clk 0:02:59.1]} 3. d4 {[%clk 0:03:00]} 3... d6 {[%clk 0:02:59.6]} 4.
Nf3 {[%clk 0:02:59.9]} 4... dxe5 {[%clk 0:02:59.3]} 5. Nxe5 {[%clk 0:02:59.4]}
5... c6 {[%clk 0:02:59.7]} 6. Be2 {[%clk 0:02:58.5]} 6... Bf5 {[%clk 0:02:58.3]}
7. O-O {[%clk 0:02:54.4]} 7... Nd7 {[%clk 0:02:58.9]} 8. Nf3 {[%clk 0:02:53.6]}
8... e6 {[%clk 0:02:59.4]} 9. c4 {[%clk 0:02:51]} 9... N5f6 {[%clk 0:02:59.7]}
10. Nc3 {[%clk 0:02:50.4]} 10... Ne4 {[%clk 0:02:59.3]} 11. Nxe4 {[%clk
0:02:48.8]} 11... Bxe4 {[%clk 0:03:00.2]} 12. Bf4 {[%clk 0:02:47.2]} 12... Be7
{[%clk 0:02:49]} 13. Re1 {[%clk 0:02:46.2]} 13... O-O {[%clk 0:02:47.6]} 14. Bf1
{[%clk 0:02:44.2]} 14... Nf6 {[%clk 0:02:41.8]} 15. Ne5 {[%clk 0:02:43.1]} 15...
a5 {[%clk 0:02:34.7]} 16. Bg5 {[%clk 0:02:39.7]} 16... Bf5 {[%clk 0:02:32.9]}
17. a3 {[%clk 0:02:30.6]} 17... h6 {[%clk 0:02:32.5]} 18. Bh4 {[%clk 0:02:27.9]}
18... a4 {[%clk 0:02:30.5]} 19. Rc1 {[%clk 0:02:21.1]} 19... Qb6 {[%clk
0:02:10.1]} 20. Bxf6 {[%clk 0:01:50.3]} 20... Bxf6 {[%clk 0:02:11]} 21. Nd7
{[%clk 0:01:50.6]} 21... Qxd4 {[%clk 0:01:58.9]} 22. Nxf8 {[%clk 0:01:50.2]}
22... Rxf8 {[%clk 0:01:57.7]} 23. Qxa4 {[%clk 0:01:48.8]} 23... Qxb2 {[%clk
0:01:48.8]} 24. Qb4 {[%clk 0:01:44.4]} 24... Ra8 {[%clk 0:01:44.4]} 25. Qxb2
{[%clk 0:01:15.3]} 25... Bxb2 {[%clk 0:01:44.3]} 26. Rcd1 {[%clk 0:01:16.1]}
26... c5 {[%clk 0:01:35.2]} 27. Bd3 {[%clk 0:01:10.3]} 27... Rxa3 {[%clk
0:00:58.2]} 28. Bxf5 {[%clk 0:01:09.2]} 28... exf5 {[%clk 0:00:59.1]} 29. Rd8+
{[%clk 0:01:06.1]} 29... Kh7 {[%clk 0:00:59.5]} 30. Rd7 {[%clk 0:01:05.9]} 30...
Kg6 {[%clk 0:00:58.4]} 31. Rxb7 {[%clk 0:01:04.7]} 31... Bd4 {[%clk 0:00:58.6]}
32. h4 {[%clk 0:00:56.3]} 32... Ra2 {[%clk 0:00:55.1]} 33. Rf1 {[%clk
0:00:55.8]} 33... f4 {[%clk 0:00:45.5]} 34. h5+ {[%clk 0:00:52.6]} 34... Kf6
{[%clk 0:00:43.1]} 35. Rb6+ {[%clk 0:00:49.6]} 35... Kg5 {[%clk 0:00:39.2]} 36.
Rb7 {[%clk 0:00:50.2]} 36... f5 {[%clk 0:00:37.9]} 37. Rf7 {[%clk 0:00:45.2]}
37... Rc2 {[%clk 0:00:34.4]} 38. Rb1 {[%clk 0:00:30.6]} 38... Rxf2 {[%clk
0:00:27.6]} 39. Kh1 {[%clk 0:00:29.2]} 39... Kxh5 {[%clk 0:00:20.8]} 40. Rxf5+
{[%clk 0:00:28]} 40... Kg4 {[%clk 0:00:21.5]} 41. Rf7 {[%clk 0:00:27.5]} 41...
g5 {[%clk 0:00:22.1]} 42. Rb3 {[%clk 0:00:26.5]} 42... Rf1+ {[%clk 0:00:20.4]}
0-1

[Event "Early-Titled-Tuesday-Blitz-June-18-2024"]
[Site "Chess.com"]
[Date "2024.06.18"]
[Round "2"]
[White "laskakid"]
[Black "AlexanderKing"]
[Result "1-0"]
[WhiteElo "2374"]
[BlackElo "2531"]
[TimeControl "180+1"]
[EndTime "8:18:17 PDT"]
[Termination "laskakid won on time"]

1. Nf3 {[%clk 0:03:00.9]} 1... Nf6 {[%clk 0:02:59.8]} 2. b3 {[%clk 0:03:01]}
2... g6 {[%clk 0:02:59.5]} 3. Bb2 {[%clk 0:03:01.1]} 3... Bg7 {[%clk 0:02:59.9]}
4. g3 {[%clk 0:03:01.5]} 4... d5 {[%clk 0:03:00]} 5. c4 {[%clk 0:02:58.1]} 5...
c6 {[%clk 0:02:56.1]} 6. Bg2 {[%clk 0:02:58.1]} 6... O-O {[%clk 0:02:56.1]} 7.
O-O {[%clk 0:02:57.3]} 7... Ne4 {[%clk 0:02:26]} 8. Bxg7 {[%clk 0:02:48.4]} 8...
Kxg7 {[%clk 0:02:26.9]} 9. d3 {[%clk 0:02:47.7]} 9... Nf6 {[%clk 0:02:26]} 10.
Nbd2 {[%clk 0:02:42.4]} 10... Bg4 {[%clk 0:02:20.7]} 11. h3 {[%clk 0:02:40.6]}
11... Bxf3 {[%clk 0:02:20.6]} 12. Nxf3 {[%clk 0:02:41]} 12... Nbd7 {[%clk
0:02:13.5]} 13. Qd2 {[%clk 0:02:22.4]} 13... a5 {[%clk 0:02:11.9]} 14. Qb2
{[%clk 0:02:19.6]} 14... Qc7 {[%clk 0:02:08.9]} 15. Rac1 {[%clk 0:02:13.7]}
15... Qd6 {[%clk 0:02:08.8]} 16. Rfd1 {[%clk 0:02:09.3]} 16... e5 {[%clk
0:02:03.8]} 17. d4 {[%clk 0:01:56.5]} 17... e4 {[%clk 0:02:00.2]} 18. Ne5 {[%clk
0:01:56.7]} 18... Rfe8 {[%clk 0:02:00.2]} 19. Nxd7 {[%clk 0:01:48.6]} 19... Nxd7
{[%clk 0:01:53.4]} 20. f3 {[%clk 0:01:38.7]} 20... f5 {[%clk 0:01:50.3]} 21. f4
{[%clk 0:01:32.4]} 21... g5 {[%clk 0:01:37]} 22. e3 {[%clk 0:01:30]} 22... gxf4
{[%clk 0:01:33.1]} 23. gxf4 {[%clk 0:01:20.5]} 23... Rg8 {[%clk 0:01:32.4]} 24.
Kh2 {[%clk 0:01:20.4]} 24... Kf7 {[%clk 0:01:20.6]} 25. cxd5 {[%clk 0:01:18]}
25... cxd5 {[%clk 0:01:19.9]} 26. Qf2 {[%clk 0:01:16.4]} 26... Rg6 {[%clk
0:01:12.1]} 27. Qh4 {[%clk 0:01:03.6]} 27... Rag8 {[%clk 0:01:12.1]} 28. Rg1
{[%clk 0:01:02.6]} 28... Rh6 {[%clk 0:00:50]} 29. Qf2 {[%clk 0:00:58.7]} 29...
Nf6 {[%clk 0:00:49.3]} 30. Qd2 {[%clk 0:00:41]} 30... b6 {[%clk 0:00:25.9]} 31.
Qc3 {[%clk 0:00:32.8]} 31... Ke6 {[%clk 0:00:17.3]} 32. Bf1 {[%clk 0:00:20]}
32... Ng4+ {[%clk 0:00:12.9]} 33. Kh1 {[%clk 0:00:19.9]} 33... Nf2+ {[%clk
0:00:10.4]} 34. Kh2 {[%clk 0:00:19.6]} 34... Rxg1 {[%clk 0:00:05]} 35. Kxg1
{[%clk 0:00:19.7]} 35... Nxh3+ {[%clk 0:00:05.9]} 36. Bxh3 {[%clk 0:00:18.3]}
36... Rxh3 {[%clk 0:00:06.8]} 37. Qc8+ {[%clk 0:00:17.7]} 37... Qd7 {[%clk
0:00:01.1]} 38. Rc6+ {[%clk 0:00:16]} 1-0

[Event "Early-Titled-Tuesday-Blitz-June-18-2024"]
[Site "Chess.com"]
[Date "2024.06.18"]
[Round "2"]
[White "KNVB"]
[Black "Oleg_Papayan"]
[Result "1-0"]
[WhiteElo "2820"]
[BlackElo "2568"]
[TimeControl "180+1"]
[EndTime "8:18:18 PDT"]
[Termination "KNVB won by checkmate"]

1. d4 {[%clk 0:03:00.9]} 1... d5 {[%clk 0:03:00.1]} 2. Bf4 {[%clk 0:02:52.8]}
2... c5 {[%clk 0:02:57.4]} 3. e3 {[%clk 0:02:48.6]} 3... Nc6 {[%clk 0:02:57.3]}
4. c3 {[%clk 0:02:48.1]} 4... Qb6 {[%clk 0:02:51.3]} 5. Qb3 {[%clk 0:02:48.2]}
5... c4 {[%clk 0:02:51.2]} 6. Qc2 {[%clk 0:02:48.7]} 6... e5 {[%clk 0:02:51.6]}
7. dxe5 {[%clk 0:02:48.5]} 7... Bf5 {[%clk 0:02:51.8]} 8. Qc1 {[%clk 0:02:46.8]}
8... g5 {[%clk 0:02:45.6]} 9. Bg3 {[%clk 0:02:45.4]} 9... h5 {[%clk 0:02:27.2]}
10. h4 {[%clk 0:02:45.4]} 10... g4 {[%clk 0:02:27.4]} 11. Nd2 {[%clk 0:02:39.9]}
11... Bc5 {[%clk 0:02:03.2]} 12. Ne2 {[%clk 0:02:05.6]} 12... O-O-O {[%clk
0:01:02]} 13. Nd4 {[%clk 0:02:03.7]} 13... Nge7 {[%clk 0:01:02.7]} 14. Be2
{[%clk 0:01:39.2]} 14... Rhe8 {[%clk 0:00:54.7]} 15. b4 {[%clk 0:01:29.1]} 15...
Bxd4 {[%clk 0:00:36.1]} 16. exd4 {[%clk 0:01:28.9]} 16... Nxd4 {[%clk
0:00:33.8]} 17. cxd4 {[%clk 0:01:24.9]} 17... Qxd4 {[%clk 0:00:34.2]} 18. O-O
{[%clk 0:00:58.9]} 18... Nc6 {[%clk 0:00:34.5]} 19. Rd1 {[%clk 0:00:40.4]} 19...
Qb6 {[%clk 0:00:34.9]} 20. Bxc4 {[%clk 0:00:40.8]} 20... dxc4 {[%clk 0:00:28.8]}
21. Nxc4 {[%clk 0:00:41.7]} 21... Qxb4 {[%clk 0:00:15.8]} 22. Nd6+ {[%clk
0:00:13.6]} 22... Rxd6 {[%clk 0:00:16.1]} 23. exd6 {[%clk 0:00:13.5]} 23... Kd7
{[%clk 0:00:12.9]} 24. Re1 {[%clk 0:00:05.8]} 24... Be6 {[%clk 0:00:04]} 25. Rb1
{[%clk 0:00:04.1]} 25... Qa4 {[%clk 0:00:01.7]} 26. Rxb7+ {[%clk 0:00:04.7]}
26... Kd8 {[%clk 0:00:01.6]} 27. Rc7 {[%clk 0:00:01.4]} 27... Bd7 {[%clk
0:00:01.5]} 28. Rxe8+ {[%clk 0:00:01.2]} 28... Kxe8 {[%clk 0:00:01.9]} 29. Qe3+
{[%clk 0:00:01.8]} 29... Kd8 {[%clk 0:00:02.6]} 30. Bf4 {[%clk 0:00:02]} 30...
Qd1+ {[%clk 0:00:03.1]} 31. Kh2 {[%clk 0:00:02.2]} 31... Qd5 {[%clk 0:00:03.6]}
32. Bg5+ {[%clk 0:00:02.5]} 32... f6 {[%clk 0:00:03]} 33. Bxf6+ {[%clk
0:00:03.1]} 33... Ne7 {[%clk 0:00:03.3]} 34. Qxe7# {[%clk 0:00:03.7]} 1-0

[Event "Early-Titled-Tuesday-Blitz-June-18-2024"]
[Site "Chess.com"]
[Date "2024.06.18"]
[Round "2"]
[White "Orest_Vovk"]
[Black "SchmakAttack"]
[Result "0-1"]
[WhiteElo "2564"]
[BlackElo "2816"]
[TimeControl "180+1"]
[EndTime "8:18:19 PDT"]
[Termination "SchmakAttack won by resignation"]

1. h4 {[%clk 0:03:00.9]} 1... e5 {[%clk 0:02:56.2]} 2. h5 {[%clk 0:03:01.2]}
2... d5 {[%clk 0:02:56]} 3. h6 {[%clk 0:03:01.5]} 3... Nc6 {[%clk 0:02:56.2]} 4.
d4 {[%clk 0:03:02]} 4... exd4 {[%clk 0:02:44.2]} 5. Nf3 {[%clk 0:02:59.3]} 5...
Nxh6 {[%clk 0:02:02.4]} 6. Bxh6 {[%clk 0:02:57]} 6... gxh6 {[%clk 0:02:03.3]} 7.
Nxd4 {[%clk 0:02:57.2]} 7... Bg7 {[%clk 0:02:02.4]} 8. e3 {[%clk 0:02:43.2]}
8... Nxd4 {[%clk 0:01:45.4]} 9. exd4 {[%clk 0:02:42.9]} 9... O-O {[%clk
0:01:46.2]} 10. Bd3 {[%clk 0:02:38.6]} 10... Re8+ {[%clk 0:01:41.2]} 11. Kf1
{[%clk 0:02:38.6]} 11... Qf6 {[%clk 0:01:08.6]} 12. c3 {[%clk 0:02:34.5]} 12...
Bf5 {[%clk 0:01:08.4]} 13. Bxf5 {[%clk 0:02:32.6]} 13... Qxf5 {[%clk 0:01:09.3]}
14. Rh3 {[%clk 0:02:11.9]} 14... Re6 {[%clk 0:01:09.2]} 15. Nd2 {[%clk
0:02:10.3]} 15... Rae8 {[%clk 0:01:08.8]} 16. Nf3 {[%clk 0:02:05.4]} 16... Re2
{[%clk 0:00:39.4]} 17. Qxe2 {[%clk 0:01:53.7]} 17... Rxe2 {[%clk 0:00:40.3]} 18.
Kxe2 {[%clk 0:01:54.5]} 18... Qc2+ {[%clk 0:00:40]} 19. Nd2 {[%clk 0:01:54.4]}
19... b6 {[%clk 0:00:40.5]} 20. b4 {[%clk 0:01:47.3]} 20... Qb2 {[%clk
0:00:38.1]} 21. Re1 {[%clk 0:01:42.2]} 21... Qxa2 {[%clk 0:00:38.3]} 22. Kd3
{[%clk 0:01:39.5]} 22... Kf8 {[%clk 0:00:30.2]} 23. Rhe3 {[%clk 0:01:36.5]}
23... Bf6 {[%clk 0:00:30.3]} 24. f4 {[%clk 0:01:28.2]} 24... a5 {[%clk
0:00:25.1]} 25. Re8+ {[%clk 0:01:26.9]} 25... Kg7 {[%clk 0:00:25.2]} 26. R1e3
{[%clk 0:01:23.6]} 26... h5 {[%clk 0:00:25.1]} 27. Rg3+ {[%clk 0:01:17.5]} 27...
Kh6 {[%clk 0:00:25.2]} 28. Rf8 {[%clk 0:00:48.8]} 28... axb4 {[%clk 0:00:18]}
29. Rxf7 {[%clk 0:00:49.2]} 29... Bh4 {[%clk 0:00:17.9]} 30. Rg8 {[%clk
0:00:39.7]} 30... bxc3 {[%clk 0:00:15.7]} 31. Kxc3 {[%clk 0:00:31.5]} 31... Qa1+
{[%clk 0:00:15.7]} 32. Kd3 {[%clk 0:00:27.7]} 32... c5 {[%clk 0:00:15.2]} 33.
Rc7 {[%clk 0:00:20]} 33... Qxd4+ {[%clk 0:00:14.6]} 34. Kc2 {[%clk 0:00:18.4]}
34... Qxf4 {[%clk 0:00:09.3]} 35. Rc6+ {[%clk 0:00:16.2]} 35... Bf6 {[%clk
0:00:09.8]} 36. Rf8 {[%clk 0:00:15.9]} 36... Qa4+ {[%clk 0:00:06.9]} 0-1